[Event "Titled Tuesday Blitz March 01 Early 2022"]
[White "Roberson, Peter T"]
[Black "Gabdrakhmanov, Azat"]
[WhiteFideId "412384"]
[BlackFideId "34189197"]
[WhiteElo "2346"]
[BlackElo "2279"]
[Result "1-0"]
[Round "10"]
[TimeControl "180+1"]
[Date "2022.03.01"]
[WhiteClock "0:00:05"]
[BlackClock "0:00:04"]

1. e4 {[%clk 0:03:00]}  c5 {[%clk 0:03:00]} 2. Na3 {[%clk 0:02:56]}  Nc6 {[%clk 0:02:59]} 3. Bb5 {[%clk 0:02:55]}  Nd4 {[%clk 0:02:56]} 4. Bc4 {[%clk 0:02:53]}  e6 {[%clk 0:02:55]} 5. c3 {[%clk 0:02:53]}  Nc6 {[%clk 0:02:55]} 6. Nf3 {[%clk 0:02:48]}  Nf6 {[%clk 0:02:54]} 7. e5 {[%clk 0:02:46]}  Ng4 {[%clk 0:02:53]} 8. d4 {[%clk 0:02:46]}  cxd4 {[%clk 0:02:52]} 9. cxd4 {[%clk 0:02:47]}  d6 {[%clk 0:02:29]} 10. h3 {[%clk 0:02:43]}  Nh6 {[%clk 0:02:30]} 11. Bxh6 {[%clk 0:02:28]}  gxh6 {[%clk 0:02:30]} 12. exd6 {[%clk 0:02:25]}  Bxd6 {[%clk 0:02:29]} 13. O-O {[%clk 0:02:23]}  Rg8 {[%clk 0:02:29]} 14. Nb5 {[%clk 0:02:20]}  Bb8 {[%clk 0:02:29]} 15. d5 {[%clk 0:02:15]}  exd5 {[%clk 0:02:10]} 16. Re1+ {[%clk 0:02:14]}  Kf8 {[%clk 0:02:10]} 17. Bxd5 {[%clk 0:01:03]}  a6 {[%clk 0:01:26]} 18. Nc3 {[%clk 0:00:47]}  Ne7 {[%clk 0:01:03]} 19. Qd2 {[%clk 0:00:35]}  Rg6 {[%clk 0:00:58]} 20. Rad1 {[%clk 0:00:29]}  Bxh3 {[%clk 0:00:53]} 21. Nh4 {[%clk 0:00:28]}  Rg5 {[%clk 0:00:36]} 22. Bxb7 {[%clk 0:00:28]}  Qxd2 {[%clk 0:00:15]} 23. Rxd2 {[%clk 0:00:29]}  Ra7 {[%clk 0:00:15]} 24. Rd8+ {[%clk 0:00:28]}  Kg7 {[%clk 0:00:15]} 25. Rxb8 {[%clk 0:00:27]}  Ng6 {[%clk 0:00:16]} 26. Nxg6 {[%clk 0:00:23]}  hxg6 {[%clk 0:00:16]} 27. Kh2 {[%clk 0:00:16]}  Be6 {[%clk 0:00:16]} 28. Bf3 {[%clk 0:00:14]}  Rc5 {[%clk 0:00:16]} 29. Rb7 {[%clk 0:00:13]}  Rxb7 {[%clk 0:00:14]} 30. Bxb7 {[%clk 0:00:14]}  a5 {[%clk 0:00:15]} 31. Re3 {[%clk 0:00:13]}  h5 {[%clk 0:00:13]} 32. f3 {[%clk 0:00:13]}  h4 {[%clk 0:00:13]} 33. Kg1 {[%clk 0:00:12]}  Rg5 {[%clk 0:00:13]} 34. Kf2 {[%clk 0:00:12]}  h3 {[%clk 0:00:12]} 35. gxh3 {[%clk 0:00:13]}  Bxh3 {[%clk 0:00:11]} 36. f4 {[%clk 0:00:14]}  Rh5 {[%clk 0:00:12]} 37. Re5 {[%clk 0:00:13]}  Bf5 {[%clk 0:00:12]} 38. Rxa5 {[%clk 0:00:11]}  Rh2+ {[%clk 0:00:11]} 39. Ke3 {[%clk 0:00:11]}  Rxb2 {[%clk 0:00:11]} 40. Be4 {[%clk 0:00:12]}  Be6 {[%clk 0:00:11]} 41. a4 {[%clk 0:00:11]}  Rb3 {[%clk 0:00:10]} 42. Kd4 {[%clk 0:00:12]}  Rb4+ {[%clk 0:00:11]} 43. Kd3 {[%clk 0:00:11]}  Bc4+ {[%clk 0:00:11]} 44. Ke3 {[%clk 0:00:11]}  Be6 {[%clk 0:00:11]} 45. Rc5 {[%clk 0:00:10]}  Rb3 {[%clk 0:00:09]} 46. a5 {[%clk 0:00:10]}  Ra3 {[%clk 0:00:10]} 47. Kd4 {[%clk 0:00:10]}  f5 {[%clk 0:00:08]} 48. Bb7 {[%clk 0:00:10]}  Kf6 {[%clk 0:00:08]} 49. a6 {[%clk 0:00:10]}  Bd7 {[%clk 0:00:07]} 50. Nb5 {[%clk 0:00:08]}  Ra4+ {[%clk 0:00:04]} 51. Kd5 {[%clk 0:00:08]}  Ke7 {[%clk 0:00:03]} 52. a7 {[%clk 0:00:07]}  Re4 {[%clk 0:00:03]} 53. a8=Q {[%clk 0:00:04]}  Be6+ {[%clk 0:00:04]} 54. Kc6 {[%clk 0:00:04]}  Bd7+ {[%clk 0:00:05]} 55. Kb6 {[%clk 0:00:05]}  Rb4 {[%clk 0:00:05]} 56. Qb8 {[%clk 0:00:04]}  Rd4 {[%clk 0:00:04]} 57. Qe5+ {[%clk 0:00:04]}  Kd8 {[%clk 0:00:04]} 58. Qxd4 {[%clk 0:00:05]} 1-0


[Site "https://www.chess.com"]

[Event "Titled Tuesday Blitz March 01 Early 2022"]
[White "Rozhkov, Viacheslav"]
[Black "Gaehwiler, Gabriel"]
[WhiteFideId "4181484"]
[BlackFideId "1314530"]
[WhiteElo "2324"]
[BlackElo "2383"]
[Result "1/2-1/2"]
[Round "10"]
[TimeControl "180+1"]
[Date "2022.03.01"]
[WhiteClock "0:00:08"]
[BlackClock "0:00:22"]

1. e4 {[%clk 0:03:00]}  c5 {[%clk 0:03:00]} 2. Nf3 {[%clk 0:02:59]}  d6 {[%clk 0:03:00]} 3. d4 {[%clk 0:02:59]}  cxd4 {[%clk 0:03:01]} 4. Nxd4 {[%clk 0:03:00]}  Nf6 {[%clk 0:03:02]} 5. Nc3 {[%clk 0:03:00]}  Nc6 {[%clk 0:03:03]} 6. Bc4 {[%clk 0:02:57]}  Bd7 {[%clk 0:03:03]} 7. Bb3 {[%clk 0:02:56]}  Rc8 {[%clk 0:03:03]} 8. Be3 {[%clk 0:02:55]}  a6 {[%clk 0:03:03]} 9. f3 {[%clk 0:02:42]}  e6 {[%clk 0:03:01]} 10. Qe2 {[%clk 0:02:42]}  Be7 {[%clk 0:03:01]} 11. O-O-O {[%clk 0:02:42]}  Qc7 {[%clk 0:02:54]} 12. g4 {[%clk 0:02:41]}  h6 {[%clk 0:02:51]} 13. h4 {[%clk 0:02:41]}  b5 {[%clk 0:02:52]} 14. g5 {[%clk 0:02:40]}  Nh5 {[%clk 0:02:51]} 15. g6 {[%clk 0:02:21]}  Nxd4 {[%clk 0:02:26]} 16. gxf7+ {[%clk 0:02:16]}  Kxf7 {[%clk 0:02:26]} 17. Bxd4 {[%clk 0:02:17]}  b4 {[%clk 0:02:22]} 18. f4 {[%clk 0:02:08]}  Nxf4 {[%clk 0:02:03]} 19. Rdf1 {[%clk 0:02:04]}  bxc3 {[%clk 0:00:46]} 20. Qh5+ {[%clk 0:01:37]}  Kg8 {[%clk 0:00:44]} 21. Rxf4 {[%clk 0:01:35]}  cxb2+ {[%clk 0:00:43]} 22. Kxb2 {[%clk 0:01:22]}  Be8 {[%clk 0:00:29]} 23. Bxe6+ {[%clk 0:01:12]}  Kh7 {[%clk 0:00:29]} 24. Qf5+ {[%clk 0:00:41]}  Bg6 {[%clk 0:00:24]} 25. Qxg6+ {[%clk 0:00:40]}  Kxg6 {[%clk 0:00:25]} 26. h5+ {[%clk 0:00:08]}  Kh7 {[%clk 0:00:20]} 27. Bf5+ {[%clk 0:00:08]}  Kg8 {[%clk 0:00:20]} 28. Be6+ {[%clk 0:00:08]}  Kh7 {[%clk 0:00:21]} 29. Bf5+ {[%clk 0:00:07]}  Kg8 {[%clk 0:00:21]} 30. Be6+ {[%clk 0:00:08]}  Kh7 {[%clk 0:00:22]} 1/2-1/2


[Site "https://www.chess.com"]

[Event "Titled Tuesday Blitz March 01 Early 2022"]
[White "Samant Aditya S"]
[Black "Piesik, Piotr"]
[WhiteFideId "35080580"]
[BlackFideId "1136194"]
[WhiteElo "1916"]
[BlackElo "2232"]
[Result "0-1"]
[Round "10"]
[TimeControl "180+1"]
[Date "2022.03.01"]
[WhiteClock "0:00:03"]
[BlackClock "0:00:19"]

1. d4 {[%clk 0:03:00]}  c5 {[%clk 0:02:53]} 2. d5 {[%clk 0:02:58]}  e5 {[%clk 0:02:54]} 3. e4 {[%clk 0:02:56]}  d6 {[%clk 0:02:54]} 4. Nc3 {[%clk 0:02:57]}  Be7 {[%clk 0:02:54]} 5. Nf3 {[%clk 0:02:53]}  a6 {[%clk 0:02:54]} 6. a4 {[%clk 0:02:53]}  Bg4 {[%clk 0:02:54]} 7. g3 {[%clk 0:02:10]}  Nd7 {[%clk 0:02:50]} 8. h4 {[%clk 0:02:09]}  h6 {[%clk 0:02:43]} 9. Be3 {[%clk 0:02:01]}  f5 {[%clk 0:02:42]} 10. exf5 {[%clk 0:02:01]}  Bxf5 {[%clk 0:02:40]} 11. Bd3 {[%clk 0:01:55]}  Bxd3 {[%clk 0:02:39]} 12. Qxd3 {[%clk 0:01:56]}  Ngf6 {[%clk 0:02:39]} 13. Qg6+ {[%clk 0:01:54]}  Kf8 {[%clk 0:02:40]} 14. O-O-O {[%clk 0:01:36]}  Qe8 {[%clk 0:02:30]} 15. Qf5 {[%clk 0:01:28]}  g6 {[%clk 0:02:24]} 16. Qd3 {[%clk 0:01:13]}  Kg7 {[%clk 0:02:19]} 17. Nd2 {[%clk 0:01:00]}  Nb6 {[%clk 0:02:09]} 18. b3 {[%clk 0:00:53]}  c4 {[%clk 0:02:02]} 19. Nxc4 {[%clk 0:00:37]}  Nxc4 {[%clk 0:02:02]} 20. Qxc4 {[%clk 0:00:38]}  Rc8 {[%clk 0:02:02]} 21. Qd3 {[%clk 0:00:38]}  b5 {[%clk 0:01:54]} 22. Kb2 {[%clk 0:00:25]}  bxa4 {[%clk 0:01:50]} 23. Nxa4 {[%clk 0:00:26]}  Ng4 {[%clk 0:01:30]} 24. Nb6 {[%clk 0:00:24]}  Rc7 {[%clk 0:01:26]} 25. Nc4 {[%clk 0:00:24]}  Qb5 {[%clk 0:01:23]} 26. Kc1 {[%clk 0:00:17]}  Rhc8 {[%clk 0:01:15]} 27. h5 {[%clk 0:00:17]}  g5 {[%clk 0:00:58]} 28. Qg6+ {[%clk 0:00:16]}  Kh8 {[%clk 0:00:59]} 29. Qe6 {[%clk 0:00:09]}  Rxc4 {[%clk 0:00:49]} 30. bxc4 {[%clk 0:00:09]}  Qxc4 {[%clk 0:00:50]} 31. Rd2 {[%clk 0:00:07]}  Bf6 {[%clk 0:00:36]} 32. Bd4 {[%clk 0:00:05]}  exd4 {[%clk 0:00:27]} 33. Qxg4 {[%clk 0:00:06]}  Rb8 {[%clk 0:00:23]} 34. Qf5 {[%clk 0:00:05]}  Be5 {[%clk 0:00:22]} 35. Qd3 {[%clk 0:00:03]}  Qa4 {[%clk 0:00:21]} 36. Kd1 {[%clk 0:00:01]}  Qa1+ {[%clk 0:00:21]} 37. Ke2 {[%clk 0:00:02]}  Qxh1 {[%clk 0:00:21]} 38. Qg6 {[%clk 0:00:03]}  Bg7 {[%clk 0:00:19]} 0-1


[Site "https://www.chess.com"]

[Event "Titled Tuesday Blitz March 01 Early 2022"]
[White "Samarth, J Rao"]
[Black "Todorovic, Bojan"]
[WhiteFideId "46652370"]
[BlackFideId "917087"]
[WhiteElo "1514"]
[BlackElo "2266"]
[Result "1-0"]
[Round "10"]
[TimeControl "180+1"]
[Date "2022.03.01"]
[WhiteClock "0:00:19"]
[BlackClock "0:00:06"]

1. d4 {[%clk 0:01:42]}  Nf6 {[%clk 0:02:58]} 2. c4 {[%clk 0:01:43]}  g6 {[%clk 0:02:56]} 3. Nc3 {[%clk 0:01:44]}  c5 {[%clk 0:02:54]} 4. d5 {[%clk 0:01:42]}  Bg7 {[%clk 0:02:53]} 5. e4 {[%clk 0:01:41]}  d6 {[%clk 0:02:53]} 6. f4 {[%clk 0:01:41]}  O-O {[%clk 0:02:52]} 7. Nf3 {[%clk 0:01:41]}  e6 {[%clk 0:02:51]} 8. Be2 {[%clk 0:01:41]}  exd5 {[%clk 0:02:51]} 9. exd5 {[%clk 0:01:41]}  Bf5 {[%clk 0:02:46]} 10. O-O {[%clk 0:01:40]}  Ne4 {[%clk 0:02:45]} 11. Nxe4 {[%clk 0:01:40]}  Bxe4 {[%clk 0:02:45]} 12. Bd3 {[%clk 0:01:40]}  Re8 {[%clk 0:02:34]} 13. Bxe4 {[%clk 0:01:40]}  Rxe4 {[%clk 0:02:33]} 14. Ng5 {[%clk 0:01:41]}  Rd4 {[%clk 0:02:15]} 15. Qe2 {[%clk 0:01:38]}  Nd7 {[%clk 0:02:12]} 16. Be3 {[%clk 0:01:33]}  Qe7 {[%clk 0:02:07]} 17. Rae1 {[%clk 0:01:29]}  Re8 {[%clk 0:02:03]} 18. Qc2 {[%clk 0:01:21]}  h6 {[%clk 0:01:59]} 19. Bf2 {[%clk 0:01:15]}  Qf8 {[%clk 0:01:45]} 20. Rxe8 {[%clk 0:01:10]}  Qxe8 {[%clk 0:01:43]} 21. Re1 {[%clk 0:01:08]}  Qf8 {[%clk 0:01:34]} 22. Nh3 {[%clk 0:01:06]}  f5 {[%clk 0:01:19]} 23. Bxd4 {[%clk 0:01:04]}  Bxd4+ {[%clk 0:01:18]} 24. Kh1 {[%clk 0:01:03]}  Nf6 {[%clk 0:01:13]} 25. Re6 {[%clk 0:01:02]}  Kg7 {[%clk 0:01:05]} 26. Qa4 {[%clk 0:01:00]}  a6 {[%clk 0:00:54]} 27. Qa5 {[%clk 0:00:48]}  Ne4 {[%clk 0:00:39]} 28. Qc7+ {[%clk 0:00:45]}  Kh8 {[%clk 0:00:37]} 29. Qd7 {[%clk 0:00:37]}  Nf6 {[%clk 0:00:29]} 30. Qxd6 {[%clk 0:00:28]}  Qxd6 {[%clk 0:00:29]} 31. Rxd6 {[%clk 0:00:28]}  Bxb2 {[%clk 0:00:29]} 32. Rb6 {[%clk 0:00:28]}  Bd4 {[%clk 0:00:22]} 33. Rxb7 {[%clk 0:00:27]}  Ne4 {[%clk 0:00:23]} 34. g3 {[%clk 0:00:20]}  Nd6 {[%clk 0:00:22]} 35. Rb6 {[%clk 0:00:19]}  Nxc4 {[%clk 0:00:22]} 36. Rxg6 {[%clk 0:00:19]}  a5 {[%clk 0:00:20]} 37. Rxh6+ {[%clk 0:00:19]}  Kg7 {[%clk 0:00:20]} 38. Rc6 {[%clk 0:00:20]}  Kf7 {[%clk 0:00:19]} 39. Ng5+ {[%clk 0:00:20]}  Ke7 {[%clk 0:00:19]} 40. Ra6 {[%clk 0:00:20]}  Ne3 {[%clk 0:00:18]} 41. Nf3 {[%clk 0:00:20]}  Nxd5 {[%clk 0:00:17]} 42. Nxd4 {[%clk 0:00:20]}  cxd4 {[%clk 0:00:17]} 43. Rxa5 {[%clk 0:00:21]}  Kd6 {[%clk 0:00:18]} 44. Ra3 {[%clk 0:00:21]}  Kc5 {[%clk 0:00:18]} 45. Kg2 {[%clk 0:00:21]}  Kb4 {[%clk 0:00:17]} 46. Ra8 {[%clk 0:00:19]}  d3 {[%clk 0:00:16]} 47. Kf2 {[%clk 0:00:19]}  Kc3 {[%clk 0:00:16]} 48. Ke1 {[%clk 0:00:19]}  Kc2 {[%clk 0:00:16]} 49. Rc8+ {[%clk 0:00:18]}  Nc3 {[%clk 0:00:15]} 50. Rd8 {[%clk 0:00:18]}  Ne4 {[%clk 0:00:15]} 51. h4 {[%clk 0:00:17]}  Nxg3 {[%clk 0:00:13]} 52. Kf2 {[%clk 0:00:17]}  Ne4+ {[%clk 0:00:13]} 53. Ke3 {[%clk 0:00:17]}  Nf6 {[%clk 0:00:12]} 54. Rxd3 {[%clk 0:00:14]}  Ng4+ {[%clk 0:00:12]} 55. Ke2 {[%clk 0:00:15]}  Nf6 {[%clk 0:00:11]} 56. Rd8 {[%clk 0:00:16]}  Nh5 {[%clk 0:00:11]} 57. Rc8+ {[%clk 0:00:17]}  Kb2 {[%clk 0:00:10]} 58. Ke3 {[%clk 0:00:18]}  Kxa2 {[%clk 0:00:10]} 59. Rc5 {[%clk 0:00:18]}  Ng7 {[%clk 0:00:09]} 60. Re5 {[%clk 0:00:19]}  Kb3 {[%clk 0:00:09]} 61. Re7 {[%clk 0:00:19]}  Nh5 {[%clk 0:00:09]} 62. Rf7 {[%clk 0:00:19]}  Kc4 {[%clk 0:00:07]} 63. Rxf5 {[%clk 0:00:18]}  Ng3 {[%clk 0:00:08]} 64. Rg5 {[%clk 0:00:19]}  Nf1+ {[%clk 0:00:07]} 65. Ke2 {[%clk 0:00:20]}  Nh2 {[%clk 0:00:06]} 66. Rg2 {[%clk 0:00:19]} 1-0


[Site "https://www.chess.com"]

[Event "Titled Tuesday Blitz March 01 Early 2022"]
[White "Savchenko, Boris"]
[Black "Lazavik, Denis"]
[WhiteFideId "4147332"]
[BlackFideId "13515110"]
[WhiteElo "2512"]
[BlackElo "2436"]
[Result "0-1"]
[Round "10"]
[TimeControl "180+1"]
[Date "2022.03.01"]
[WhiteClock "0:00:05"]
[BlackClock "0:00:04"]

1. e4 {[%clk 0:03:00]}  e5 {[%clk 0:02:59]} 2. Nf3 {[%clk 0:03:00]}  Nc6 {[%clk 0:03:00]} 3. Bc4 {[%clk 0:03:01]}  Bc5 {[%clk 0:03:00]} 4. c3 {[%clk 0:03:01]}  Nf6 {[%clk 0:03:01]} 5. d3 {[%clk 0:03:01]}  d6 {[%clk 0:03:01]} 6. b4 {[%clk 0:03:01]}  Bb6 {[%clk 0:03:00]} 7. a4 {[%clk 0:03:01]}  a5 {[%clk 0:02:59]} 8. b5 {[%clk 0:03:01]}  Ne7 {[%clk 0:02:59]} 9. O-O {[%clk 0:03:00]}  O-O {[%clk 0:02:59]} 10. Na3 {[%clk 0:02:59]}  Ng6 {[%clk 0:02:58]} 11. Nc2 {[%clk 0:02:59]}  c6 {[%clk 0:02:56]} 12. Be3 {[%clk 0:02:58]}  d5 {[%clk 0:02:54]} 13. exd5 {[%clk 0:02:58]}  cxd5 {[%clk 0:02:54]} 14. Bb3 {[%clk 0:02:58]}  Be6 {[%clk 0:02:51]} 15. Re1 {[%clk 0:02:43]}  d4 {[%clk 0:02:31]} 16. Ncxd4 {[%clk 0:02:32]}  exd4 {[%clk 0:02:30]} 17. Bxd4 {[%clk 0:02:33]}  Bxd4 {[%clk 0:02:27]} 18. Nxd4 {[%clk 0:02:32]}  Bxb3 {[%clk 0:02:28]} 19. Qxb3 {[%clk 0:02:32]}  Qd5 {[%clk 0:02:25]} 20. Qxd5 {[%clk 0:02:28]}  Nxd5 {[%clk 0:02:26]} 21. c4 {[%clk 0:02:28]}  Nb4 {[%clk 0:02:26]} 22. Red1 {[%clk 0:02:18]}  Rfd8 {[%clk 0:02:25]} 23. Nb3 {[%clk 0:02:18]}  Rxd3 {[%clk 0:02:21]} 24. Nc5 {[%clk 0:02:11]}  Rxd1+ {[%clk 0:02:15]} 25. Rxd1 {[%clk 0:02:12]}  b6 {[%clk 0:02:15]} 26. Nd7 {[%clk 0:02:08]}  Nf4 {[%clk 0:01:26]} 27. Nxb6 {[%clk 0:02:06]}  Re8 {[%clk 0:01:15]} 28. c5 {[%clk 0:02:01]}  Ne2+ {[%clk 0:01:12]} 29. Kf1 {[%clk 0:02:00]}  Nc3 {[%clk 0:01:13]} 30. Ra1 {[%clk 0:01:53]}  Kf8 {[%clk 0:00:59]} 31. c6 {[%clk 0:01:51]}  Nbd5 {[%clk 0:00:47]} 32. Nxd5 {[%clk 0:01:45]}  Nxd5 {[%clk 0:00:47]} 33. Rc1 {[%clk 0:01:08]}  Ke7 {[%clk 0:00:40]} 34. c7 {[%clk 0:01:05]}  Rc8 {[%clk 0:00:32]} 35. Rc5 {[%clk 0:01:00]}  Kd6 {[%clk 0:00:26]} 36. Rc6+ {[%clk 0:00:57]}  Kd7 {[%clk 0:00:26]} 37. Ra6 {[%clk 0:00:57]}  Rxc7 {[%clk 0:00:23]} 38. Rxa5 {[%clk 0:00:56]}  Rc2 {[%clk 0:00:23]} 39. Ra7+ {[%clk 0:00:55]}  Ke6 {[%clk 0:00:23]} 40. g3 {[%clk 0:00:50]}  Rb2 {[%clk 0:00:21]} 41. Ra6+ {[%clk 0:00:41]}  Ke5 {[%clk 0:00:20]} 42. Ra7 {[%clk 0:00:42]}  Kf6 {[%clk 0:00:17]} 43. Ra6+ {[%clk 0:00:39]}  Kf5 {[%clk 0:00:18]} 44. Ra7 {[%clk 0:00:40]}  Kg6 {[%clk 0:00:18]} 45. Ra6+ {[%clk 0:00:24]}  f6 {[%clk 0:00:18]} 46. h4 {[%clk 0:00:20]}  h5 {[%clk 0:00:18]} 47. Kg2 {[%clk 0:00:20]}  Kf5 {[%clk 0:00:17]} 48. Ra7 {[%clk 0:00:20]}  g6 {[%clk 0:00:15]} 49. Kf3 {[%clk 0:00:19]}  Rb3+ {[%clk 0:00:12]} 50. Kg2 {[%clk 0:00:19]}  Nc3 {[%clk 0:00:10]} 51. Ra6 {[%clk 0:00:16]}  Rb4 {[%clk 0:00:09]} 52. b6 {[%clk 0:00:12]}  Nxa4 {[%clk 0:00:10]} 53. b7 {[%clk 0:00:13]}  Nc3 {[%clk 0:00:09]} 54. Ra5+ {[%clk 0:00:13]}  Ke6 {[%clk 0:00:09]} 55. Ra6+ {[%clk 0:00:13]}  Ke5 {[%clk 0:00:06]} 56. f4+ {[%clk 0:00:07]}  Kf5 {[%clk 0:00:05]} 57. Rc6 {[%clk 0:00:06]}  Ne4 {[%clk 0:00:04]} 58. Rc7 {[%clk 0:00:05]}  Kg4 {[%clk 0:00:03]} 59. Rg7 {[%clk 0:00:04]}  Rb2+ {[%clk 0:00:03]} 60. Kf1 {[%clk 0:00:05]}  Kf3 {[%clk 0:00:04]} 0-1


[Site "https://www.chess.com"]

[Event "Titled Tuesday Blitz March 01 Early 2022"]
[White "Shtyka, Sergey"]
[Black "Gubanov, Oleg"]
[WhiteFideId "4138465"]
[BlackFideId "14115115"]
[WhiteElo "2014"]
[BlackElo "2080"]
[Result "1-0"]
[Round "10"]
[TimeControl "180+1"]
[Date "2022.03.01"]
[WhiteClock "0:00:11"]
[BlackClock "0:00:10"]

1. e4 {[%clk 0:02:57]}  Nf6 {[%clk 0:02:59]} 2. e5 {[%clk 0:02:57]}  Nd5 {[%clk 0:02:59]} 3. c4 {[%clk 0:02:57]}  Nb6 {[%clk 0:02:58]} 4. a4 {[%clk 0:02:58]}  d6 {[%clk 0:02:58]} 5. a5 {[%clk 0:02:58]}  N6d7 {[%clk 0:02:58]} 6. e6 {[%clk 0:02:58]}  fxe6 {[%clk 0:02:58]} 7. Bd3 {[%clk 0:02:59]}  Nf6 {[%clk 0:02:57]} 8. g4 {[%clk 0:02:59]}  g6 {[%clk 0:02:07]} 9. h4 {[%clk 0:02:28]}  Nc6 {[%clk 0:02:01]} 10. h5 {[%clk 0:01:54]}  g5 {[%clk 0:01:58]} 11. f4 {[%clk 0:01:40]}  gxf4 {[%clk 0:01:23]} 12. g5 {[%clk 0:01:39]}  Ne5 {[%clk 0:01:23]} 13. Be2 {[%clk 0:01:20]}  Ne4 {[%clk 0:01:21]} 14. d4 {[%clk 0:01:16]}  Nc6 {[%clk 0:01:14]} 15. Bxf4 {[%clk 0:01:13]}  Bg7 {[%clk 0:00:56]} 16. Nf3 {[%clk 0:00:59]}  Rf8 {[%clk 0:00:50]} 17. Rh4 {[%clk 0:00:50]}  e5 {[%clk 0:00:39]} 18. dxe5 {[%clk 0:00:40]}  dxe5 {[%clk 0:00:39]} 19. Qxd8+ {[%clk 0:00:39]}  Kxd8 {[%clk 0:00:39]} 20. Be3 {[%clk 0:00:37]}  Ng3 {[%clk 0:00:33]} 21. Nc3 {[%clk 0:00:34]}  Nf5 {[%clk 0:00:31]} 22. O-O-O+ {[%clk 0:00:28]}  Bd7 {[%clk 0:00:30]} 23. Re4 {[%clk 0:00:24]}  Nxe3 {[%clk 0:00:30]} 24. Rxe3 {[%clk 0:00:24]}  Kc8 {[%clk 0:00:21]} 25. Nd5 {[%clk 0:00:21]}  h6 {[%clk 0:00:18]} 26. b4 {[%clk 0:00:19]}  e6 {[%clk 0:00:16]} 27. b5 {[%clk 0:00:15]}  exd5 {[%clk 0:00:16]} 28. bxc6 {[%clk 0:00:16]}  bxc6 {[%clk 0:00:15]} 29. cxd5 {[%clk 0:00:16]}  hxg5 {[%clk 0:00:15]} 30. dxc6 {[%clk 0:00:14]}  Bxc6 {[%clk 0:00:15]} 31. Nxe5 {[%clk 0:00:13]}  Ba4 {[%clk 0:00:13]} 32. Ba6+ {[%clk 0:00:11]}  Kb8 {[%clk 0:00:10]} 33. Rb3+ {[%clk 0:00:11]}  Bxb3 {[%clk 0:00:10]} 34. Nc6# {[%clk 0:00:11]} 1-0


[Site "https://www.chess.com"]

[Event "Titled Tuesday Blitz March 01 Early 2022"]
[White "Shuvalov, Evgenij"]
[Black "Khamdamova, Afruza"]
[WhiteFideId "4187237"]
[BlackFideId "14210444"]
[WhiteElo "2119"]
[BlackElo "1660"]
[Result "1-0"]
[Round "10"]
[TimeControl "180+1"]
[Date "2022.03.01"]
[WhiteClock "0:00:45"]
[BlackClock "0:00:03"]

1. b4 {[%clk 0:02:55]}  e5 {[%clk 0:02:56]} 2. Bb2 {[%clk 0:02:55]}  Bxb4 {[%clk 0:02:52]} 3. Bxe5 {[%clk 0:02:54]}  Nf6 {[%clk 0:02:52]} 4. Nc3 {[%clk 0:02:54]}  Nc6 {[%clk 0:02:51]} 5. Bxf6 {[%clk 0:02:54]}  Qxf6 {[%clk 0:02:48]} 6. Nd5 {[%clk 0:02:54]}  Qd6 {[%clk 0:02:48]} 7. c4 {[%clk 0:02:53]}  O-O {[%clk 0:02:45]} 8. Nf3 {[%clk 0:02:52]}  b6 {[%clk 0:02:44]} 9. e3 {[%clk 0:02:51]}  Bb7 {[%clk 0:02:35]} 10. Be2 {[%clk 0:02:50]}  Ne7 {[%clk 0:02:26]} 11. Nxb4 {[%clk 0:02:44]}  Qxb4 {[%clk 0:02:25]} 12. O-O {[%clk 0:02:45]}  d5 {[%clk 0:02:24]} 13. Rc1 {[%clk 0:02:42]}  Qd6 {[%clk 0:02:21]} 14. d4 {[%clk 0:02:41]}  c5 {[%clk 0:02:17]} 15. dxc5 {[%clk 0:02:39]}  bxc5 {[%clk 0:02:08]} 16. cxd5 {[%clk 0:02:30]}  Qxd5 {[%clk 0:02:03]} 17. Qxd5 {[%clk 0:02:27]}  Bxd5 {[%clk 0:02:02]} 18. Rxc5 {[%clk 0:02:22]}  Bxa2 {[%clk 0:02:02]} 19. Ra1 {[%clk 0:02:22]}  Be6 {[%clk 0:02:00]} 20. Rc7 {[%clk 0:02:20]}  Nc8 {[%clk 0:01:50]} 21. Nd4 {[%clk 0:02:16]}  Bd5 {[%clk 0:01:44]} 22. Ba6 {[%clk 0:02:05]}  Nb6 {[%clk 0:01:40]} 23. f3 {[%clk 0:01:53]}  Rfd8 {[%clk 0:01:29]} 24. Kf2 {[%clk 0:01:50]}  f6 {[%clk 0:01:09]} 25. Nf5 {[%clk 0:01:43]}  Bf7 {[%clk 0:01:03]} 26. e4 {[%clk 0:01:28]}  Rd2+ {[%clk 0:00:57]} 27. Kg3 {[%clk 0:01:28]}  Rd7 {[%clk 0:00:29]} 28. Rxd7 {[%clk 0:01:21]}  Nxd7 {[%clk 0:00:28]} 29. Bb7 {[%clk 0:01:19]}  Rb8 {[%clk 0:00:27]} 30. Rxa7 {[%clk 0:01:18]}  Nc5 {[%clk 0:00:26]} 31. Ra8 {[%clk 0:01:11]}  Rxa8 {[%clk 0:00:23]} 32. Bxa8 {[%clk 0:01:12]}  Be6 {[%clk 0:00:23]} 33. Bd5 {[%clk 0:01:07]}  g6 {[%clk 0:00:22]} 34. Ne3 {[%clk 0:01:04]}  Kf7 {[%clk 0:00:22]} 35. f4 {[%clk 0:01:00]}  Ke7 {[%clk 0:00:21]} 36. Kf3 {[%clk 0:00:59]}  Nd3 {[%clk 0:00:18]} 37. h4 {[%clk 0:00:54]}  Kd6 {[%clk 0:00:17]} 38. g4 {[%clk 0:00:51]}  Bxd5 {[%clk 0:00:16]} 39. Nxd5 {[%clk 0:00:52]}  f5 {[%clk 0:00:15]} 40. Nf6 {[%clk 0:00:50]}  fxg4+ {[%clk 0:00:14]} 41. Kxg4 {[%clk 0:00:49]}  h6 {[%clk 0:00:13]} 42. Ng8 {[%clk 0:00:46]}  Nf2+ {[%clk 0:00:12]} 43. Kf3 {[%clk 0:00:46]}  Nd3 {[%clk 0:00:03]} 44. Nxh6 {[%clk 0:00:46]}  Ke6 {[%clk 0:00:03]} 45. Ng4 {[%clk 0:00:45]}  Kf7 {[%clk 0:00:02]} 46. Ne5+ {[%clk 0:00:44]}  Nxe5+ {[%clk 0:00:02]} 47. fxe5 {[%clk 0:00:45]}  Ke6 {[%clk 0:00:03]} 48. Kf4 {[%clk 0:00:45]} 1-0


[Site "https://www.chess.com"]